{"text_format":"2","workbook":"xlsx","n_sheets":7,"sheets":["LÉEME","ENTRADA - Lista de verificación","ENTRADA - Datos","SALIDA - Gráficos","Traducción","VERSION CONTROL","Reference"],"not_rendered":{"charts":4,"images":8,"macros":0,"external_links":0,"defined_names":2,"comments":1,"pivot_tables":0},"unopened":[],"bounds":{"document_bytes":16777216,"sheet_cells":100000,"run_cost":"one","rows_first":2000,"rows_last":500,"rows_between":2000,"halvings":0,"cell_chars":16384,"cell_head_chars":4096},"cells_cut":0,"cells_raw":0,"read":"whole","date_system":"1900"}

{"sheet":"LÉEME","index":0,"n_rows":90,"n_cols":7,"rows_kept":90,"cut":false,"hidden":false,"merged":[[18,3,22,8],[60,3,84,8],[50,3,50,4],[50,5,50,6],[46,3,47,5],[10,3,10,8],[15,3,15,8],[17,3,17,8],[23,3,23,8],[31,3,31,8],[44,3,45,5],[44,6,45,8],[42,3,43,5],[42,6,43,8],[49,3,49,8],[34,3,36,5],[34,6,36,8],[37,3,39,5],[37,6,39,8],[40,3,41,5],[40,6,41,8],[46,6,47,8],[51,3,52,4],[51,5,52,8],[89,3,89,5],[53,3,53,4],[53,5,53,7],[54,3,54,4],[54,5,54,8],[55,3,57,4],[55,5,56,8],[57,5,57,7],[58,3,58,4],[58,5,58,7]]}
{"$rows_empty":10}
[null,null,null,"Hoja Léeme"]
[]
[]
[]
[]
[null,null,null,"PROMUEVE – Herramienta de evaluación de impacto"]
[]
[null,null,null,"Introducción"]
[null,null,null,"Esta herramienta proporciona una guía sobre los posibles impactos de los sistemas de riego con energía solar en los aspectos socioeconómicos y ambientales. Los impactos pueden considerarse positivos, neutrales o negativos. Los impactos se agrupan en las siguientes áreas temáticas:\n1. Cambio de población y migración\n2. Papel de la mujer\n3. Grupos minoritarios e indígenas\n4. Ingresos y amenidad\n5. Efectos regionales en el país\n6. Participación del usuario\n7. Recursos naturales y el medio ambiente\nAl utilizar la lista de verificación, los asesores de SPIS pueden involucrarse más en la evaluación del cambio socioeconómico y ambiental y en la planificación de la mitigación de los impactos adversos. La lista de verificación permite que la experiencia especialista se use con mayor eficacia y promoverá una cooperación más estrecha entre especialistas y no especialistas en el desarrollo de proyectos sociales, económicos y ambientalmente sostenibles.\n\nLa lista de verificación ya se puede utilizar durante el diseño de un sistema SPIS, así como después de que se haya instalado y utilizado el SPIS, asegurando un seguimiento continuo. La herramienta es particularmente relevante para el Módulo PROMUEVE de la caja de herramientas de SPIS."]
[]
[]
[]
[]
[null,null,null,"Consejos y trucos"]
{"$rows_empty":7}
[null,null,null,"Sinopsis"]
[null,null,null,"Esta herramienta incluye las siguientes hojas:"]
[]
[null,null,null,"ENTRADA - Lista de verificación",null,null,"Esta hoja incluye preguntas que llevan el diseñador del SPIS a evaluar y ponderar los aspectos socioeconómicos y ambientales del proyecto. Las repuestas generan gráficos que aparecen en la hoja de SALIDA."]
[]
[]
[null,null,null,"ENTRADA - Datos",null,null,"Esta hoja permite la entrada de datos para dar una visión general los los benificiarios del proyecto. Los valores generan gráficos que aparecen en la hoja SALIDA."]
[]
[]
[null,null,null,"SALIDO - Gráficos",null,null,"Esta hoja contiene gráficos, generados por las hojas de ENTRADA. Se pueden usar para la evaluación y en informes más aplios para demostrar los impactos socioeconómicos y ambientales del proyecto."]
[]
[null,null,null,"Version Control",null,null,"Oculto. Esta hoja contiene detalles sobre las versiones y cambios realizados en cada revisión de esta herramienta. "]
[]
[null,null,null,"Reference",null,null,"Oculto. Resultados de referencia y referencias de las preguntas contenidas en estas hojas de ENTRADA. "]
[]
[null,null,null,"Traducción",null,null,"Traducción de palabras claves. "]
[]
[]
[null,null,null,"Acerca de"]
[null,null,null,"Publicado por:",null,"GIZ & FAO"]
[null,null,null,"Responsable:",null,"Proyecto de la GIZ Sustainable Energy for Food - Powering Agriculture"]
[]
[null,null,null,"Contacto:",null,"Powering.Agriculture@giz.de"]
[null,null,null,"Enlace descarga:",null,"https://energypedia.info/wiki/Toolbox_on_SPIS"]
[null,null,null,"Acerca de",null,"Powering Agriculture: An Energy Grand Challenge for Development. Disponible en:  "]
[]
[{"$nulls":5},"https://poweringag.org"]
[null,null,null,"Versión",null,"1.2 (Julio 2018)"]
[]
[null,null,null,"La publicación de la Caja de herramientas de sistemas de riego solar ha sido posible gracias al apoyo brindado por la iniciativa mundial Powering Agriculture: An Energy Grand Challenge for Development (PAEGC) (Energización Rural: Un gran desafío energético para el desarrollo). En 2012, la Agencia de los Estados Unidos para el Desarrollo Internacional (USAID), la Agencia Sueca de Cooperación Internacional para el Desarrollo (Sida), el Ministerio Federal de Cooperación Económica y Desarrollo (BMZ) de Alemania, la empresa de energía Duke Energy Corporation y la Corporación de Inversiones Privadas en el Extranjero (OPIC) juntaron recursos para crear la iniciativa PAEGC. El objetivo de PAEGC es fomentar nuevos enfoques sostenibles con el fin de acelerar el desarrollo y asegurar el establecimiento de energías limpias que incrementen la productividad y/o el valor de la agricultura en países en desarrollo y regiones emergentes sin acceso a fuentes de energía confiables, asequibles y limpias. \nLas denominaciones empleadas y la presentación del material en este producto informativo no implican juicio alguno por parte de la Deutsche Gesellschaft für Internationale Zusammenarbeit (GIZ) GmbH, la Organización de las Naciones Unidas para la Alimentación y la Agricultura (FAO), o los socios fundadores de la iniciativa PAEGC, sobre la condición jurídica o el grado de desarrollo de ninguno de los países, territorios, ciudades o zonas citados o de sus autoridades, ni respecto de la delimitación de sus fronteras o límites. La mención de empresas o productos de fabricantes en particular, estén o no patentados, no implica que la GIZ, la FAO o alguno de los socios fundadores de la iniciativa PAEGC los aprueben o recomienden, dándoles preferencia sobre otros de naturaleza similar que no se mencionan. Las opiniones expresadas en este producto informativo son las de su(s) autor(es) o autora(s), y no reflejan necesariamente los puntos de vista o las políticas de la GIZ, la FAO o ninguno de los socios fundadores de la iniciativa PAEGC.\nLa GIZ, la FAO y los socios fundadores de la iniciativa PAEGC fomentan la utilización, la reproducción y la difusión del material presentado en este producto informativo. A menos que se indique lo contrario, el material puede ser copiado, descargado e impreso con fines de estudio privado, enseñanza e investigación científica, o para su utilización en productos o servicios no comerciales, siempre que se otorgue a la GIZ y la FAO el debido reconocimiento como fuentes y como titulares de los derechos de autor."]
{"$rows_empty":28}
[null,null,null,"© GIZ and FAO, 2018"]

{"sheet":"ENTRADA - Lista de verificación","index":1,"n_rows":92,"n_cols":8,"rows_kept":92,"cut":false,"hidden":false,"merged":[[91,1,91,2],[88,1,88,2],[89,1,89,2],[60,1,60,2],[61,1,61,2],[63,1,63,2],[62,1,62,6],[76,1,76,2],[77,1,77,2],[78,1,78,2],[79,1,79,2],[80,1,80,2],[40,1,40,2],[42,1,42,2],[41,1,41,2],[86,1,86,2],[87,1,87,2],[64,1,64,2],[65,1,65,2],[66,1,66,2],[67,1,67,2],[69,1,69,2],[81,1,81,2],[82,1,82,2],[68,1,68,6],[85,1,85,2],[83,1,83,2],[59,1,59,2],[71,1,71,2],[72,1,72,2],[75,1,75,2],[53,1,53,2],[54,1,54,2],[55,1,55,2],[56,1,56,2],[57,1,57,2],[58,1,58,2],[70,1,70,2],[73,1,73,2],[74,1,74,2],[30,1,30,2],[22,2,22,4],[1,0,1,6],[0,1,0,6],[47,1,47,2],[16,1,16,2],[8,4,8,5],[9,4,9,5],[5,4,5,5],[6,4,6,5],[3,4,3,5],[4,4,4,5],[31,1,31,2],[14,1,14,6],[15,1,15,2],[17,1,17,2],[24,1,24,2],[29,1,29,2],[2,0,2,6],[7,4,7,5],[19,1,19,2],[20,1,20,2],[25,1,25,2],[26,1,26,2],[23,1,23,2],[22,5,22,6],[27,1,27,2],[28,1,28,2],[18,1,18,2],[21,1,21,2],[52,1,52,6],[44,1,44,6],[32,1,32,2],[33,1,33,2],[34,1,34,2],[35,1,35,2],[36,1,36,2],[38,1,38,2],[39,1,39,2],[45,1,45,2],[46,1,46,2],[48,1,48,2],[49,1,49,2],[50,1,50,2],[51,1,51,2],[37,1,37,6]]}
[null,"PROMUEVE – Herramienta de evaluación de impacto"]
["IMPACTOS SOCIOECONÓMICOS Y AMBIENTALES"]
["Esta lista de verificación es para evaluar aproximadamente los impactos socioeconómicos y ambientales de los sistemas de riego solar."]
[null,1,{"$f":"B15","v":"Cambio de población y migración"},{"$f":"SUM(H16:H22)","v":52.5},"Nombre del proyecto:",null,"sample"]
[null,2,{"$f":"B23","v":"Papel de la mujer"},{"$f":"SUM(H24:H37)","v":105},"Ubicación del proyecto:"]
[null,3,{"$f":"B38","v":"Grupos minoritarios e indígenas"},{"$f":"SUM(H39:H44)","v":45},"Nombre del usario:"]
[null,4,{"$f":"B45","v":"Ingresos y servicios"},{"$f":"SUM(H46:H52)","v":52.5},"Fecha de la evaluación de impacto"]
[null,5,{"$f":"B53","v":"Efectos regionales en el país"},{"$f":"SUM(H54:H62)","v":67.5},"Duración del proyecto (años)"]
[null,6,{"$f":"B63","v":"Participación del usario"},{"$f":"SUM(H64:H68)","v":37.5},"Vida útil del activo (años)"]
[null,7,{"$f":"B69","v":"Recursos naturales y medio ambiente"},{"$f":"SUM(H70:H92)","v":172.5},"Notas:"]
[null,null,"RESULTADO",{"$f":"SUM(D4+D7+D5+D6+D10+D8+D9)","v":532.5}]
[]
[]
["Ref #","Pregunta",null,"Yes, No or N/A ","Ponderación\n(¿Qué importante es esto para el proyecto?)","¿Cuál es el impacto del proyecto?","Commentarios"]
[1,"Cambio de población y migración"]
["1a","¿Se han considerado los cambios en el tamaño / densidad de la población y la composición demográfica / étnica en la planificación del proyecto?",null,"Yes","High","Positive impact is very likely",null,{"$f":"IFERROR(IF(D16=\"Yes\",(VLOOKUP(E16,Reference!$A$9:$B$11,2,FALSE)*VLOOKUP(F16,Reference!$A$2:$B$7,2,FALSE)*VLOOKUP(D16,Reference!$A$14:$B$15,2,FALSE)),(VLOOKUP(E16,Reference!$A$9:$B$11,2,FALSE)*VLOOKUP(F16,Reference!$A$2:$C$7,3,FALSE)*VLOOKUP(D16,Reference!$A$14:$B$15,2,FALSE))),\" \")","v":7.5}]
["1b","¿El proyecto está causando cambios demográficos significativos en el área o en proximidad del proyecto que podrían afectar la armonía social?",null,"Yes","High","Positive impact is very likely",null,{"$f":"IFERROR(IF(D17=\"Yes\",(VLOOKUP(E17,Reference!$A$9:$B$11,2,FALSE)*VLOOKUP(F17,Reference!$A$2:$B$7,2,FALSE)*VLOOKUP(D17,Reference!$A$14:$B$15,2,FALSE)),(VLOOKUP(E17,Reference!$A$9:$B$11,2,FALSE)*VLOOKUP(F17,Reference!$A$2:$C$7,3,FALSE)*VLOOKUP(D17,Reference!$A$14:$B$15,2,FALSE))),\" \")","v":7.5}]
["1c","¿El proyecto está evitando el desplazamiento físico y económico de personas?",null,"Yes","High","Positive impact is very likely",null,{"$f":"IFERROR(IF(D18=\"Yes\",(VLOOKUP(E18,Reference!$A$9:$B$11,2,FALSE)*VLOOKUP(F18,Reference!$A$2:$B$7,2,FALSE)*VLOOKUP(D18,Reference!$A$14:$B$15,2,FALSE)),(VLOOKUP(E18,Reference!$A$9:$B$11,2,FALSE)*VLOOKUP(F18,Reference!$A$2:$C$7,3,FALSE)*VLOOKUP(D18,Reference!$A$14:$B$15,2,FALSE))),\" \")","v":7.5}]
["1d","¿Se ha considerado la migración humana desde la ubicación del proyecto (por ejemplo éxodo rural) y hacia ella (por ejemplo, la demanda (estacional) de mano de obra agrícola)?",null,"Yes","High","Positive impact is very likely",null,{"$f":"IFERROR(IF(D19=\"Yes\",(VLOOKUP(E19,Reference!$A$9:$B$11,2,FALSE)*VLOOKUP(F19,Reference!$A$2:$B$7,2,FALSE)*VLOOKUP(D19,Reference!$A$14:$B$15,2,FALSE)),(VLOOKUP(E19,Reference!$A$9:$B$11,2,FALSE)*VLOOKUP(F19,Reference!$A$2:$C$7,3,FALSE)*VLOOKUP(D19,Reference!$A$14:$B$15,2,FALSE))),\" \")","v":7.5}]
["1e","¿Asegura el proyecto un empleo rural digno, promoviendo más y mejores oportunidades de empleo y condiciones de trabajo, y evitando prácticas, que podrían aumentar la vulnerabilidad de los trabajadores?",null,"Yes","High","Positive impact is very likely",null,{"$f":"IFERROR(IF(D20=\"Yes\",(VLOOKUP(E20,Reference!$A$9:$B$11,2,FALSE)*VLOOKUP(F20,Reference!$A$2:$B$7,2,FALSE)*VLOOKUP(D20,Reference!$A$14:$B$15,2,FALSE)),(VLOOKUP(E20,Reference!$A$9:$B$11,2,FALSE)*VLOOKUP(F20,Reference!$A$2:$C$7,3,FALSE)*VLOOKUP(D20,Reference!$A$14:$B$15,2,FALSE))),\" \")","v":7.5}]
["1f","¿El proyecto respeta los principios y derechos fundamentales en el trabajo y prohíbe el trabajo infantil?",null,"Yes","High","Positive impact is very likely",null,{"$f":"IFERROR(IF(D21=\"Yes\",(VLOOKUP(E21,Reference!$A$9:$B$11,2,FALSE)*VLOOKUP(F21,Reference!$A$2:$B$7,2,FALSE)*VLOOKUP(D21,Reference!$A$14:$B$15,2,FALSE)),(VLOOKUP(E21,Reference!$A$9:$B$11,2,FALSE)*VLOOKUP(F21,Reference!$A$2:$C$7,3,FALSE)*VLOOKUP(D21,Reference!$A$14:$B$15,2,FALSE))),\" \")","v":7.5}]
["1g","¿Se han tomado medidas adecuadas para cualquier afluencia de población migratoria o temporal para evitar entre los grupos permanentes y temporales la privación social, las dificultades o los conflictos?",null,"Yes","High","Positive impact is very likely",null,{"$f":"IFERROR(IF(D22=\"Yes\",(VLOOKUP(E22,Reference!$A$9:$B$11,2,FALSE)*VLOOKUP(F22,Reference!$A$2:$B$7,2,FALSE)*VLOOKUP(D22,Reference!$A$14:$B$15,2,FALSE)),(VLOOKUP(E22,Reference!$A$9:$B$11,2,FALSE)*VLOOKUP(F22,Reference!$A$2:$C$7,3,FALSE)*VLOOKUP(D22,Reference!$A$14:$B$15,2,FALSE))),\" \")","v":7.5}]
[2,"Papel de la mujer","para preguntas en más profundidad y aspectos a considerar, consulte:",null,null,"http://www.fao.org/docrep/017/i3173e/i3173e.pdf"]
["2a","¿Se han tenido en cuenta las necesidades, las prioridades y las limitaciones de los dos, mujeres y hombres, durante el diseño del proyecto?",null,"Yes","High","Positive impact is very likely",null,{"$f":"IFERROR(IF(D24=\"Yes\",(VLOOKUP(E24,Reference!$A$9:$B$11,2,FALSE)*VLOOKUP(F24,Reference!$A$2:$B$7,2,FALSE)*VLOOKUP(D24,Reference!$A$14:$B$15,2,FALSE)),(VLOOKUP(E24,Reference!$A$9:$B$11,2,FALSE)*VLOOKUP(F24,Reference!$A$2:$C$7,3,FALSE)*VLOOKUP(D24,Reference!$A$14:$B$15,2,FALSE))),\" \")","v":7.5}]
["2b","¿El proyecto cambia positivamente el estado y el papel de las mujeres en relación con la posición social?",null,"Yes","High","Positive impact is very likely",null,{"$f":"IFERROR(IF(D25=\"Yes\",(VLOOKUP(E25,Reference!$A$9:$B$11,2,FALSE)*VLOOKUP(F25,Reference!$A$2:$B$7,2,FALSE)*VLOOKUP(D25,Reference!$A$14:$B$15,2,FALSE)),(VLOOKUP(E25,Reference!$A$9:$B$11,2,FALSE)*VLOOKUP(F25,Reference!$A$2:$C$7,3,FALSE)*VLOOKUP(D25,Reference!$A$14:$B$15,2,FALSE))),\" \")","v":7.5}]
["2c","¿El proyecto cambia positivamente el estado y el papel de las mujeres en relación con la carga de trabajo?",null,"Yes","High","Positive impact is very likely",null,{"$f":"IFERROR(IF(D26=\"Yes\",(VLOOKUP(E26,Reference!$A$9:$B$11,2,FALSE)*VLOOKUP(F26,Reference!$A$2:$B$7,2,FALSE)*VLOOKUP(D26,Reference!$A$14:$B$15,2,FALSE)),(VLOOKUP(E26,Reference!$A$9:$B$11,2,FALSE)*VLOOKUP(F26,Reference!$A$2:$C$7,3,FALSE)*VLOOKUP(D26,Reference!$A$14:$B$15,2,FALSE))),\" \")","v":7.5}]
["2d","¿El proyecto cambia positivamente el estado y el papel de las mujeres en relación con el acceso a los mercados, los ingresos y las finanzas?",null,"Yes","High","Positive impact is very likely",null,{"$f":"IFERROR(IF(D27=\"Yes\",(VLOOKUP(E27,Reference!$A$9:$B$11,2,FALSE)*VLOOKUP(F27,Reference!$A$2:$B$7,2,FALSE)*VLOOKUP(D27,Reference!$A$14:$B$15,2,FALSE)),(VLOOKUP(E27,Reference!$A$9:$B$11,2,FALSE)*VLOOKUP(F27,Reference!$A$2:$C$7,3,FALSE)*VLOOKUP(D27,Reference!$A$14:$B$15,2,FALSE))),\" \")","v":7.5}]
["2e","¿El proyecto cambia positivamente el estado y el papel de las mujeres en relación con el patrimonio y la herencia?",null,"Yes","High","Positive impact is very likely",null,{"$f":"IFERROR(IF(D28=\"Yes\",(VLOOKUP(E28,Reference!$A$9:$B$11,2,FALSE)*VLOOKUP(F28,Reference!$A$2:$B$7,2,FALSE)*VLOOKUP(D28,Reference!$A$14:$B$15,2,FALSE)),(VLOOKUP(E28,Reference!$A$9:$B$11,2,FALSE)*VLOOKUP(F28,Reference!$A$2:$C$7,3,FALSE)*VLOOKUP(D28,Reference!$A$14:$B$15,2,FALSE))),\" \")","v":7.5}]
["2f","¿El proyecto cambia positivamente el estado y el papel de las mujeres en relación con los derechos matrimoniales?",null,"Yes","High","Positive impact is very likely",null,{"$f":"IFERROR(IF(D29=\"Yes\",(VLOOKUP(E29,Reference!$A$9:$B$11,2,FALSE)*VLOOKUP(F29,Reference!$A$2:$B$7,2,FALSE)*VLOOKUP(D29,Reference!$A$14:$B$15,2,FALSE)),(VLOOKUP(E29,Reference!$A$9:$B$11,2,FALSE)*VLOOKUP(F29,Reference!$A$2:$C$7,3,FALSE)*VLOOKUP(D29,Reference!$A$14:$B$15,2,FALSE))),\" \")","v":7.5}]
["2g","¿El proyecto promueve a las mujeres y hombres el acceso equitativo a y el control de los recursos y servicios productivos?",null,"Yes","High","Positive impact is very likely",null,{"$f":"IFERROR(IF(D30=\"Yes\",(VLOOKUP(E30,Reference!$A$9:$B$11,2,FALSE)*VLOOKUP(F30,Reference!$A$2:$B$7,2,FALSE)*VLOOKUP(D30,Reference!$A$14:$B$15,2,FALSE)),(VLOOKUP(E30,Reference!$A$9:$B$11,2,FALSE)*VLOOKUP(F30,Reference!$A$2:$C$7,3,FALSE)*VLOOKUP(D30,Reference!$A$14:$B$15,2,FALSE))),\" \")","v":7.5}]
["2h","¿El proyecto fomenta la participación equitativa de hombres y mujeres en las instituciones y en los procesos decisorios?",null,"Yes","High","Positive impact is very likely",null,{"$f":"IFERROR(IF(D31=\"Yes\",(VLOOKUP(E31,Reference!$A$9:$B$11,2,FALSE)*VLOOKUP(F31,Reference!$A$2:$B$7,2,FALSE)*VLOOKUP(D31,Reference!$A$14:$B$15,2,FALSE)),(VLOOKUP(E31,Reference!$A$9:$B$11,2,FALSE)*VLOOKUP(F31,Reference!$A$2:$C$7,3,FALSE)*VLOOKUP(D31,Reference!$A$14:$B$15,2,FALSE))),\" \")","v":7.5}]
["2i","¿Permite el proyecto reducir la carga de tiempo para las mujeres y los grupos minoritarios, lo que les permite dedicarse a otras actividades, como la educación y el ocio?",null,"Yes","High","Positive impact is very likely",null,{"$f":"IFERROR(IF(D32=\"Yes\",(VLOOKUP(E32,Reference!$A$9:$B$11,2,FALSE)*VLOOKUP(F32,Reference!$A$2:$B$7,2,FALSE)*VLOOKUP(D32,Reference!$A$14:$B$15,2,FALSE)),(VLOOKUP(E32,Reference!$A$9:$B$11,2,FALSE)*VLOOKUP(F32,Reference!$A$2:$C$7,3,FALSE)*VLOOKUP(D32,Reference!$A$14:$B$15,2,FALSE))),\" \")","v":7.5}]
["2j","¿El proyecto establece mecanismos de resolución de disputas que tengan un equilibrio de género?",null,"Yes","High","Positive impact is very likely",null,{"$f":"IFERROR(IF(D33=\"Yes\",(VLOOKUP(E33,Reference!$A$9:$B$11,2,FALSE)*VLOOKUP(F33,Reference!$A$2:$B$7,2,FALSE)*VLOOKUP(D33,Reference!$A$14:$B$15,2,FALSE)),(VLOOKUP(E33,Reference!$A$9:$B$11,2,FALSE)*VLOOKUP(F33,Reference!$A$2:$C$7,3,FALSE)*VLOOKUP(D33,Reference!$A$14:$B$15,2,FALSE))),\" \")","v":7.5}]
["2k","¿Se han considerado las consecuencias de cambiar el uso de una fuente de agua?",null,"Yes","High","Positive impact is very likely",null,{"$f":"IFERROR(IF(D34=\"Yes\",(VLOOKUP(E34,Reference!$A$9:$B$11,2,FALSE)*VLOOKUP(F34,Reference!$A$2:$B$7,2,FALSE)*VLOOKUP(D34,Reference!$A$14:$B$15,2,FALSE)),(VLOOKUP(E34,Reference!$A$9:$B$11,2,FALSE)*VLOOKUP(F34,Reference!$A$2:$C$7,3,FALSE)*VLOOKUP(D34,Reference!$A$14:$B$15,2,FALSE))),\" \")","v":7.5}]
["2l","¿El proyecto tendrá impactos diferenciados de género por los agricultores río abajo o más allá de los límites del proyecto?",null,"Yes","High","Positive impact is very likely",null,{"$f":"IFERROR(IF(D35=\"Yes\",(VLOOKUP(E35,Reference!$A$9:$B$11,2,FALSE)*VLOOKUP(F35,Reference!$A$2:$B$7,2,FALSE)*VLOOKUP(D35,Reference!$A$14:$B$15,2,FALSE)),(VLOOKUP(E35,Reference!$A$9:$B$11,2,FALSE)*VLOOKUP(F35,Reference!$A$2:$C$7,3,FALSE)*VLOOKUP(D35,Reference!$A$14:$B$15,2,FALSE))),\" \")","v":7.5}]
["2m","¿Afectarán el derecho de un sistema de riego y el derecho a regar el registro de la tierra o el estado de la propiedad de la tierra?\n",null,"Yes","High","Positive impact is very likely",null,{"$f":"IFERROR(IF(D36=\"Yes\",(VLOOKUP(E36,Reference!$A$9:$B$11,2,FALSE)*VLOOKUP(F36,Reference!$A$2:$B$7,2,FALSE)*VLOOKUP(D36,Reference!$A$14:$B$15,2,FALSE)),(VLOOKUP(E36,Reference!$A$9:$B$11,2,FALSE)*VLOOKUP(F36,Reference!$A$2:$C$7,3,FALSE)*VLOOKUP(D36,Reference!$A$14:$B$15,2,FALSE))),\" \")","v":7.5}]
["2n","¿El proyecto ofrece oportunidades iguales para la capacitación de mujeres y hombres?",null,"Yes","High","Positive impact is very likely",null,{"$f":"IFERROR(IF(D37=\"Yes\",(VLOOKUP(E37,Reference!$A$9:$B$11,2,FALSE)*VLOOKUP(F37,Reference!$A$2:$B$7,2,FALSE)*VLOOKUP(D37,Reference!$A$14:$B$15,2,FALSE)),(VLOOKUP(E37,Reference!$A$9:$B$11,2,FALSE)*VLOOKUP(F37,Reference!$A$2:$C$7,3,FALSE)*VLOOKUP(D37,Reference!$A$14:$B$15,2,FALSE))),\" \")","v":7.5}]
[3,"Grupos minoritarios e indígenas"]
["3a","¿El proyecto está causando cambios positivos en el estilo de vida, los medios de subsistencia o la habitación de cualquier grupo social (especialmente grupos minoritarios)?",null,"Yes","High","Positive impact is very likely",null,{"$f":"IFERROR(IF(D39=\"Yes\",(VLOOKUP(E39,Reference!$A$9:$B$11,2,FALSE)*VLOOKUP(F39,Reference!$A$2:$B$7,2,FALSE)*VLOOKUP(D39,Reference!$A$14:$B$15,2,FALSE)),(VLOOKUP(E39,Reference!$A$9:$B$11,2,FALSE)*VLOOKUP(F39,Reference!$A$2:$C$7,3,FALSE)*VLOOKUP(D39,Reference!$A$14:$B$15,2,FALSE))),\" \")","v":7.5}]
["3b","¿El proyecto conduce a cambios positivos en el comportamiento tradicional, la organización social o las prácticas culturales y religiosas (especialmente los grupos minoritarios)?",null,"Yes","High","Positive impact is very likely",null,{"$f":"IFERROR(IF(D40=\"Yes\",(VLOOKUP(E40,Reference!$A$9:$B$11,2,FALSE)*VLOOKUP(F40,Reference!$A$2:$B$7,2,FALSE)*VLOOKUP(D40,Reference!$A$14:$B$15,2,FALSE)),(VLOOKUP(E40,Reference!$A$9:$B$11,2,FALSE)*VLOOKUP(F40,Reference!$A$2:$C$7,3,FALSE)*VLOOKUP(D40,Reference!$A$14:$B$15,2,FALSE))),\" \")","v":7.5}]
["3c","¿El proyecto aborda oportunidades iguales para grupos minoritarios?",null,"Yes","High","Positive impact is very likely",null,{"$f":"IFERROR(IF(D41=\"Yes\",(VLOOKUP(E41,Reference!$A$9:$B$11,2,FALSE)*VLOOKUP(F41,Reference!$A$2:$B$7,2,FALSE)*VLOOKUP(D41,Reference!$A$14:$B$15,2,FALSE)),(VLOOKUP(E41,Reference!$A$9:$B$11,2,FALSE)*VLOOKUP(F41,Reference!$A$2:$C$7,3,FALSE)*VLOOKUP(D41,Reference!$A$14:$B$15,2,FALSE))),\" \")","v":7.5}]
["3a","¿Pueden las actividades tener efectos adversos sobre los derechos de los pueblos indígenas, las tierras, los recursos naturales, los territorios, los medios de subsistencia, el conocimiento, el tejido social, las tradiciones, los sistemas de gobierno y la cultura o el patrimonio (tangible e intangible)?",null,"Yes","High","Positive impact is very likely",null,{"$f":"IFERROR(IF(D42=\"Yes\",(VLOOKUP(E42,Reference!$A$9:$B$11,2,FALSE)*VLOOKUP(F42,Reference!$A$2:$B$7,2,FALSE)*VLOOKUP(D42,Reference!$A$14:$B$15,2,FALSE)),(VLOOKUP(E42,Reference!$A$9:$B$11,2,FALSE)*VLOOKUP(F42,Reference!$A$2:$C$7,3,FALSE)*VLOOKUP(D42,Reference!$A$14:$B$15,2,FALSE))),\" \")","v":7.5}]
["3b","¿Es probable que las comunidades indígenas fuera del área del proyecto se vean afectadas por el proyecto?",null,"Yes","High","Positive impact is very likely",null,{"$f":"IFERROR(IF(D43=\"Yes\",(VLOOKUP(E43,Reference!$A$9:$B$11,2,FALSE)*VLOOKUP(F43,Reference!$A$2:$B$7,2,FALSE)*VLOOKUP(D43,Reference!$A$14:$B$15,2,FALSE)),(VLOOKUP(E43,Reference!$A$9:$B$11,2,FALSE)*VLOOKUP(F43,Reference!$A$2:$C$7,3,FALSE)*VLOOKUP(D43,Reference!$A$14:$B$15,2,FALSE))),\" \")","v":7.5}]
["3c","¿El proyecto está diseñado para ser sensible a los problemas del patrimonio cultural?",null,"Yes","High","Positive impact is very likely",null,{"$f":"IFERROR(IF(D44=\"Yes\",(VLOOKUP(E44,Reference!$A$9:$B$11,2,FALSE)*VLOOKUP(F44,Reference!$A$2:$B$7,2,FALSE)*VLOOKUP(D44,Reference!$A$14:$B$15,2,FALSE)),(VLOOKUP(E44,Reference!$A$9:$B$11,2,FALSE)*VLOOKUP(F44,Reference!$A$2:$C$7,3,FALSE)*VLOOKUP(D44,Reference!$A$14:$B$15,2,FALSE))),\" \")","v":7.5}]
[4,"Ingresos y servicios"]
["4a","¿El Proyecto está introduciendo cambios económicos / políticos significativos que pueden aumentar o disminuir la armonía social y el bienestar individual?",null,"Yes","High","Positive impact is very likely",null,{"$f":"IFERROR(IF(D46=\"Yes\",(VLOOKUP(E46,Reference!$A$9:$B$11,2,FALSE)*VLOOKUP(F46,Reference!$A$2:$B$7,2,FALSE)*VLOOKUP(D46,Reference!$A$14:$B$15,2,FALSE)),(VLOOKUP(E46,Reference!$A$9:$B$11,2,FALSE)*VLOOKUP(F46,Reference!$A$2:$C$7,3,FALSE)*VLOOKUP(D46,Reference!$A$14:$B$15,2,FALSE))),\" \")","v":7.5}]
["4b","¿Crea el proyecto oportunidades comerciales para las comunidades locales (por ejemplo, diversificación de la producción, disposiciones de servicios técnicos, nuevos mercados)?",null,"Yes","High","Positive impact is very likely",null,{"$f":"IFERROR(IF(D47=\"Yes\",(VLOOKUP(E47,Reference!$A$9:$B$11,2,FALSE)*VLOOKUP(F47,Reference!$A$2:$B$7,2,FALSE)*VLOOKUP(D47,Reference!$A$14:$B$15,2,FALSE)),(VLOOKUP(E47,Reference!$A$9:$B$11,2,FALSE)*VLOOKUP(F47,Reference!$A$2:$C$7,3,FALSE)*VLOOKUP(D47,Reference!$A$14:$B$15,2,FALSE))),\" \")","v":7.5}]
["4c","¿Influye el proyecto en la creación de un sector agrícola competitivo (por ejemplo, mejor acceso al mercado, productos de mayor calidad y mayores rendimientos)?",null,"Yes","High","Positive impact is very likely",null,{"$f":"IFERROR(IF(D48=\"Yes\",(VLOOKUP(E48,Reference!$A$9:$B$11,2,FALSE)*VLOOKUP(F48,Reference!$A$2:$B$7,2,FALSE)*VLOOKUP(D48,Reference!$A$14:$B$15,2,FALSE)),(VLOOKUP(E48,Reference!$A$9:$B$11,2,FALSE)*VLOOKUP(F48,Reference!$A$2:$C$7,3,FALSE)*VLOOKUP(D48,Reference!$A$14:$B$15,2,FALSE))),\" \")","v":7.5}]
["4d","¿Ha habido alguna mejora en el empleo y los ingresos?",null,"Yes","High","Positive impact is very likely",null,{"$f":"IFERROR(IF(D49=\"Yes\",(VLOOKUP(E49,Reference!$A$9:$B$11,2,FALSE)*VLOOKUP(F49,Reference!$A$2:$B$7,2,FALSE)*VLOOKUP(D49,Reference!$A$14:$B$15,2,FALSE)),(VLOOKUP(E49,Reference!$A$9:$B$11,2,FALSE)*VLOOKUP(F49,Reference!$A$2:$C$7,3,FALSE)*VLOOKUP(D49,Reference!$A$14:$B$15,2,FALSE))),\" \")","v":7.5}]
["4e","¿Conlleva el proyecto a la creación de empleo sostenible y trabajo en relación con el mismo?",null,"Yes","High","Positive impact is very likely",null,{"$f":"IFERROR(IF(D50=\"Yes\",(VLOOKUP(E50,Reference!$A$9:$B$11,2,FALSE)*VLOOKUP(F50,Reference!$A$2:$B$7,2,FALSE)*VLOOKUP(D50,Reference!$A$14:$B$15,2,FALSE)),(VLOOKUP(E50,Reference!$A$9:$B$11,2,FALSE)*VLOOKUP(F50,Reference!$A$2:$C$7,3,FALSE)*VLOOKUP(D50,Reference!$A$14:$B$15,2,FALSE))),\" \")","v":7.5}]
["4f","¿Ha habido algún cambio en la provisión de infraestructura y servicios locales?",null,"Yes","High","Positive impact is very likely",null,{"$f":"IFERROR(IF(D51=\"Yes\",(VLOOKUP(E51,Reference!$A$9:$B$11,2,FALSE)*VLOOKUP(F51,Reference!$A$2:$B$7,2,FALSE)*VLOOKUP(D51,Reference!$A$14:$B$15,2,FALSE)),(VLOOKUP(E51,Reference!$A$9:$B$11,2,FALSE)*VLOOKUP(F51,Reference!$A$2:$C$7,3,FALSE)*VLOOKUP(D51,Reference!$A$14:$B$15,2,FALSE))),\" \")","v":7.5}]
["4g","¿Ha habido algún cambio en la distribución relativa del ingreso, el valor de la propiedad y los beneficios del proyecto (incluido el acceso al agua de riego)?",null,"Yes","High","Positive impact is very likely",null,{"$f":"IFERROR(IF(D52=\"Yes\",(VLOOKUP(E52,Reference!$A$9:$B$11,2,FALSE)*VLOOKUP(F52,Reference!$A$2:$B$7,2,FALSE)*VLOOKUP(D52,Reference!$A$14:$B$15,2,FALSE)),(VLOOKUP(E52,Reference!$A$9:$B$11,2,FALSE)*VLOOKUP(F52,Reference!$A$2:$C$7,3,FALSE)*VLOOKUP(D52,Reference!$A$14:$B$15,2,FALSE))),\" \")","v":7.5}]
[5,"Efectos regionales en el país"]
["5a","¿Los cambios económicos, infraestructurales, sociales y demográficos asociados con el proyecto tendrán un impacto en el desarrollo regional?",null,"Yes","High","Positive impact is very likely",null,{"$f":"IFERROR(IF(D54=\"Yes\",(VLOOKUP(E54,Reference!$A$9:$B$11,2,FALSE)*VLOOKUP(F54,Reference!$A$2:$B$7,2,FALSE)*VLOOKUP(D54,Reference!$A$14:$B$15,2,FALSE)),(VLOOKUP(E54,Reference!$A$9:$B$11,2,FALSE)*VLOOKUP(F54,Reference!$A$2:$C$7,3,FALSE)*VLOOKUP(D54,Reference!$A$14:$B$15,2,FALSE))),\" \")","v":7.5}]
["5b","¿Se han considerado los impactos en la eficiencia institucional a nivel local y regional? (marco regulatorio, relaciones informales, mecanismos direccionales)",null,"Yes","High","Positive impact is very likely",null,{"$f":"IFERROR(IF(D55=\"Yes\",(VLOOKUP(E55,Reference!$A$9:$B$11,2,FALSE)*VLOOKUP(F55,Reference!$A$2:$B$7,2,FALSE)*VLOOKUP(D55,Reference!$A$14:$B$15,2,FALSE)),(VLOOKUP(E55,Reference!$A$9:$B$11,2,FALSE)*VLOOKUP(F55,Reference!$A$2:$C$7,3,FALSE)*VLOOKUP(D55,Reference!$A$14:$B$15,2,FALSE))),\" \")","v":7.5}]
["5c","¿Se han tenido en cuenta los impactos sobre la viabilidad de las propiedades de la tierra, los derechos de tierra y los derechos de agua?",null,"Yes","High","Positive impact is very likely",null,{"$f":"IFERROR(IF(D56=\"Yes\",(VLOOKUP(E56,Reference!$A$9:$B$11,2,FALSE)*VLOOKUP(F56,Reference!$A$2:$B$7,2,FALSE)*VLOOKUP(D56,Reference!$A$14:$B$15,2,FALSE)),(VLOOKUP(E56,Reference!$A$9:$B$11,2,FALSE)*VLOOKUP(F56,Reference!$A$2:$C$7,3,FALSE)*VLOOKUP(D56,Reference!$A$14:$B$15,2,FALSE))),\" \")","v":7.5}]
["5d","¿Ofrece el proyecto un nivel de vida razonable para las comunidades agrícolas y rurales?",null,"Yes","High","Positive impact is very likely",null,{"$f":"IFERROR(IF(D57=\"Yes\",(VLOOKUP(E57,Reference!$A$9:$B$11,2,FALSE)*VLOOKUP(F57,Reference!$A$2:$B$7,2,FALSE)*VLOOKUP(D57,Reference!$A$14:$B$15,2,FALSE)),(VLOOKUP(E57,Reference!$A$9:$B$11,2,FALSE)*VLOOKUP(F57,Reference!$A$2:$C$7,3,FALSE)*VLOOKUP(D57,Reference!$A$14:$B$15,2,FALSE))),\" \")","v":7.5}]
["5e","¿Contribuye el proyecto a la viabilidad de las áreas rurales / a un patrón equilibrado de desarrollo / al mantenimiento de comunidades rurales dinámicas y activas?",null,"Yes","High","Positive impact is very likely",null,{"$f":"IFERROR(IF(D58=\"Yes\",(VLOOKUP(E58,Reference!$A$9:$B$11,2,FALSE)*VLOOKUP(F58,Reference!$A$2:$B$7,2,FALSE)*VLOOKUP(D58,Reference!$A$14:$B$15,2,FALSE)),(VLOOKUP(E58,Reference!$A$9:$B$11,2,FALSE)*VLOOKUP(F58,Reference!$A$2:$C$7,3,FALSE)*VLOOKUP(D58,Reference!$A$14:$B$15,2,FALSE))),\" \")","v":7.5}]
["5f","¿Existe un impacto positivo para los agricultores de subsistencia y los sistemas agrícolas en el área del proyecto?",null,"Yes","High","Positive impact is very likely",null,{"$f":"IFERROR(IF(D59=\"Yes\",(VLOOKUP(E59,Reference!$A$9:$B$11,2,FALSE)*VLOOKUP(F59,Reference!$A$2:$B$7,2,FALSE)*VLOOKUP(D59,Reference!$A$14:$B$15,2,FALSE)),(VLOOKUP(E59,Reference!$A$9:$B$11,2,FALSE)*VLOOKUP(F59,Reference!$A$2:$C$7,3,FALSE)*VLOOKUP(D59,Reference!$A$14:$B$15,2,FALSE))),\" \")","v":7.5}]
["5g","¿Existe un impacto positivo para los agricultores de subsistencia y los sistemas agrícolas fuera del área del proyecto?",null,"Yes","High","Positive impact is very likely",null,{"$f":"IFERROR(IF(D60=\"Yes\",(VLOOKUP(E60,Reference!$A$9:$B$11,2,FALSE)*VLOOKUP(F60,Reference!$A$2:$B$7,2,FALSE)*VLOOKUP(D60,Reference!$A$14:$B$15,2,FALSE)),(VLOOKUP(E60,Reference!$A$9:$B$11,2,FALSE)*VLOOKUP(F60,Reference!$A$2:$C$7,3,FALSE)*VLOOKUP(D60,Reference!$A$14:$B$15,2,FALSE))),\" \")","v":7.5}]
["5h","¿Se han previsto adecuadamente las nuevas necesidades de transporte, comercialización y procesamiento asociadas al proyecto?",null,"Yes","High","Positive impact is very likely",null,{"$f":"IFERROR(IF(D61=\"Yes\",(VLOOKUP(E61,Reference!$A$9:$B$11,2,FALSE)*VLOOKUP(F61,Reference!$A$2:$B$7,2,FALSE)*VLOOKUP(D61,Reference!$A$14:$B$15,2,FALSE)),(VLOOKUP(E61,Reference!$A$9:$B$11,2,FALSE)*VLOOKUP(F61,Reference!$A$2:$C$7,3,FALSE)*VLOOKUP(D61,Reference!$A$14:$B$15,2,FALSE))),\" \")","v":7.5}]
["5i","¿Se ha tenido en cuenta el impacto en el acceso a sitios de importancia nacional histórica, cultural y religiosa?",null,"Yes","High","Positive impact is very likely",null,{"$f":"IFERROR(IF(D62=\"Yes\",(VLOOKUP(E62,Reference!$A$9:$B$11,2,FALSE)*VLOOKUP(F62,Reference!$A$2:$B$7,2,FALSE)*VLOOKUP(D62,Reference!$A$14:$B$15,2,FALSE)),(VLOOKUP(E62,Reference!$A$9:$B$11,2,FALSE)*VLOOKUP(F62,Reference!$A$2:$C$7,3,FALSE)*VLOOKUP(D62,Reference!$A$14:$B$15,2,FALSE))),\" \")","v":7.5}]
[6,"Participación del usario"]
["6a","¿Ha habido una participación adecuada de los usuarios en la planificación, implementación y operación del proyecto para garantizar el éxito del proyecto y reducir futuros conflictos?",null,"Yes","High","Positive impact is very likely",null,{"$f":"IFERROR(IF(D64=\"Yes\",(VLOOKUP(E64,Reference!$A$9:$B$11,2,FALSE)*VLOOKUP(F64,Reference!$A$2:$B$7,2,FALSE)*VLOOKUP(D64,Reference!$A$14:$B$15,2,FALSE)),(VLOOKUP(E64,Reference!$A$9:$B$11,2,FALSE)*VLOOKUP(F64,Reference!$A$2:$C$7,3,FALSE)*VLOOKUP(D64,Reference!$A$14:$B$15,2,FALSE))),\" \")","v":7.5}]
["6b","¿Se ha considerado la provisión de instalaciones nuevas o ampliadas para crédito, comercialización, extensión agrícola y capacitación?",null,"Yes","High","Positive impact is very likely",null,{"$f":"IFERROR(IF(D65=\"Yes\",(VLOOKUP(E65,Reference!$A$9:$B$11,2,FALSE)*VLOOKUP(F65,Reference!$A$2:$B$7,2,FALSE)*VLOOKUP(D65,Reference!$A$14:$B$15,2,FALSE)),(VLOOKUP(E65,Reference!$A$9:$B$11,2,FALSE)*VLOOKUP(F65,Reference!$A$2:$C$7,3,FALSE)*VLOOKUP(D65,Reference!$A$14:$B$15,2,FALSE))),\" \")","v":7.5}]
["6c","¿Se han tenido en cuenta adecuadamente las opiniones, las necesidades y las preferencias de los usarios en el diseño y la configuración del sistema?",null,"Yes","High","Positive impact is very likely",null,{"$f":"IFERROR(IF(D66=\"Yes\",(VLOOKUP(E66,Reference!$A$9:$B$11,2,FALSE)*VLOOKUP(F66,Reference!$A$2:$B$7,2,FALSE)*VLOOKUP(D66,Reference!$A$14:$B$15,2,FALSE)),(VLOOKUP(E66,Reference!$A$9:$B$11,2,FALSE)*VLOOKUP(F66,Reference!$A$2:$C$7,3,FALSE)*VLOOKUP(D66,Reference!$A$14:$B$15,2,FALSE))),\" \")","v":7.5}]
["6d","¿Se proporcionará capacitación a la población local?",null,"Yes","High","Positive impact is very likely",null,{"$f":"IFERROR(IF(D67=\"Yes\",(VLOOKUP(E67,Reference!$A$9:$B$11,2,FALSE)*VLOOKUP(F67,Reference!$A$2:$B$7,2,FALSE)*VLOOKUP(D67,Reference!$A$14:$B$15,2,FALSE)),(VLOOKUP(E67,Reference!$A$9:$B$11,2,FALSE)*VLOOKUP(F67,Reference!$A$2:$C$7,3,FALSE)*VLOOKUP(D67,Reference!$A$14:$B$15,2,FALSE))),\" \")","v":7.5}]
["6e","¿Se ha considerado la posibilidad de incorporar los sistemas existentes de tenencia de tierras, el riego tradicional y las estructuras organizativas y sociológicas existentes?",null,"Yes","High","Positive impact is very likely",null,{"$f":"IFERROR(IF(D68=\"Yes\",(VLOOKUP(E68,Reference!$A$9:$B$11,2,FALSE)*VLOOKUP(F68,Reference!$A$2:$B$7,2,FALSE)*VLOOKUP(D68,Reference!$A$14:$B$15,2,FALSE)),(VLOOKUP(E68,Reference!$A$9:$B$11,2,FALSE)*VLOOKUP(F68,Reference!$A$2:$C$7,3,FALSE)*VLOOKUP(D68,Reference!$A$14:$B$15,2,FALSE))),\" \")","v":7.5}]
[7,"Recursos naturales y medio ambiente"]
["7a","¿Se ha considerado el impacto de un aumento de la evapotranspiración?",null,"Yes","High","Positive impact is very likely",null,{"$f":"IFERROR(IF(D70=\"Yes\",(VLOOKUP(E70,Reference!$A$9:$B$11,2,FALSE)*VLOOKUP(F70,Reference!$A$2:$B$7,2,FALSE)*VLOOKUP(D70,Reference!$A$14:$B$15,2,FALSE)),(VLOOKUP(E70,Reference!$A$9:$B$11,2,FALSE)*VLOOKUP(F70,Reference!$A$2:$C$7,3,FALSE)*VLOOKUP(D70,Reference!$A$14:$B$15,2,FALSE))),\" \")","v":7.5}]
["7b","¿Establece el proyecto el uso del agua dentro de los límites de extracción sostenibles?",null,"Yes","High","Positive impact is very likely",null,{"$f":"IFERROR(IF(D71=\"Yes\",(VLOOKUP(E71,Reference!$A$9:$B$11,2,FALSE)*VLOOKUP(F71,Reference!$A$2:$B$7,2,FALSE)*VLOOKUP(D71,Reference!$A$14:$B$15,2,FALSE)),(VLOOKUP(E71,Reference!$A$9:$B$11,2,FALSE)*VLOOKUP(F71,Reference!$A$2:$C$7,3,FALSE)*VLOOKUP(D71,Reference!$A$14:$B$15,2,FALSE))),\" \")","v":7.5}]
["7c","¿Se ha considerado la disponibilidad de agua subterránea mediante el secado de pozos de agua potable y riego?",null,"Yes","High","Positive impact is very likely",null,{"$f":"IFERROR(IF(D72=\"Yes\",(VLOOKUP(E72,Reference!$A$9:$B$11,2,FALSE)*VLOOKUP(F72,Reference!$A$2:$B$7,2,FALSE)*VLOOKUP(D72,Reference!$A$14:$B$15,2,FALSE)),(VLOOKUP(E72,Reference!$A$9:$B$11,2,FALSE)*VLOOKUP(F72,Reference!$A$2:$C$7,3,FALSE)*VLOOKUP(D72,Reference!$A$14:$B$15,2,FALSE))),\" \")","v":7.5}]
["7d","¿Se ha considerado la intrusión salina en las aguas subterráneas a lo largo de las regiones costeras?",null,"Yes","High","Positive impact is very likely",null,{"$f":"IFERROR(IF(D73=\"Yes\",(VLOOKUP(E73,Reference!$A$9:$B$11,2,FALSE)*VLOOKUP(F73,Reference!$A$2:$B$7,2,FALSE)*VLOOKUP(D73,Reference!$A$14:$B$15,2,FALSE)),(VLOOKUP(E73,Reference!$A$9:$B$11,2,FALSE)*VLOOKUP(F73,Reference!$A$2:$C$7,3,FALSE)*VLOOKUP(D73,Reference!$A$14:$B$15,2,FALSE))),\" \")","v":7.5}]
["7e","¿Se han evaluado los flujos base reducidos en la disponibilidad de agua subterránea?",null,"Yes","High","Positive impact is very likely",null,{"$f":"IFERROR(IF(D74=\"Yes\",(VLOOKUP(E74,Reference!$A$9:$B$11,2,FALSE)*VLOOKUP(F74,Reference!$A$2:$B$7,2,FALSE)*VLOOKUP(D74,Reference!$A$14:$B$15,2,FALSE)),(VLOOKUP(E74,Reference!$A$9:$B$11,2,FALSE)*VLOOKUP(F74,Reference!$A$2:$C$7,3,FALSE)*VLOOKUP(D74,Reference!$A$14:$B$15,2,FALSE))),\" \")","v":7.5}]
["7f","¿Se ha considerado el impacto en las descargas del río, río abajo del área del proyecto?",null,"Yes","High","Positive impact is very likely",null,{"$f":"IFERROR(IF(D75=\"Yes\",(VLOOKUP(E75,Reference!$A$9:$B$11,2,FALSE)*VLOOKUP(F75,Reference!$A$2:$B$7,2,FALSE)*VLOOKUP(D75,Reference!$A$14:$B$15,2,FALSE)),(VLOOKUP(E75,Reference!$A$9:$B$11,2,FALSE)*VLOOKUP(F75,Reference!$A$2:$C$7,3,FALSE)*VLOOKUP(D75,Reference!$A$14:$B$15,2,FALSE))),\" \")","v":7.5}]
["7g","¿Se ha considerado el impacto en la calidad del agua a través de una reducción en la calidad del agua de riego y la lixiviación?",null,"Yes","High","Positive impact is very likely",null,{"$f":"IFERROR(IF(D76=\"Yes\",(VLOOKUP(E76,Reference!$A$9:$B$11,2,FALSE)*VLOOKUP(F76,Reference!$A$2:$B$7,2,FALSE)*VLOOKUP(D76,Reference!$A$14:$B$15,2,FALSE)),(VLOOKUP(E76,Reference!$A$9:$B$11,2,FALSE)*VLOOKUP(F76,Reference!$A$2:$C$7,3,FALSE)*VLOOKUP(D76,Reference!$A$14:$B$15,2,FALSE))),\" \")","v":7.5}]
["7h","¿Se ha considerado el impacto en los problemas de calidad del agua para los usuarios río abajo por la mala calidad del flujo de retorno de riego?",null,"Yes","High","Positive impact is very likely",null,{"$f":"IFERROR(IF(D77=\"Yes\",(VLOOKUP(E77,Reference!$A$9:$B$11,2,FALSE)*VLOOKUP(F77,Reference!$A$2:$B$7,2,FALSE)*VLOOKUP(D77,Reference!$A$14:$B$15,2,FALSE)),(VLOOKUP(E77,Reference!$A$9:$B$11,2,FALSE)*VLOOKUP(F77,Reference!$A$2:$C$7,3,FALSE)*VLOOKUP(D77,Reference!$A$14:$B$15,2,FALSE))),\" \")","v":7.5}]
["7i","¿Se ha evaluado el impacto en la degradación de la tierra a través de la salinización?",null,"Yes","High","Positive impact is very likely",null,{"$f":"IFERROR(IF(D78=\"Yes\",(VLOOKUP(E78,Reference!$A$9:$B$11,2,FALSE)*VLOOKUP(F78,Reference!$A$2:$B$7,2,FALSE)*VLOOKUP(D78,Reference!$A$14:$B$15,2,FALSE)),(VLOOKUP(E78,Reference!$A$9:$B$11,2,FALSE)*VLOOKUP(F78,Reference!$A$2:$C$7,3,FALSE)*VLOOKUP(D78,Reference!$A$14:$B$15,2,FALSE))),\" \")","v":7.5}]
["7j","¿Se ha considerado el impacto sobre la degradación de la tierra mediante alcalinización?",null,"Yes","High","Positive impact is very likely",null,{"$f":"IFERROR(IF(D79=\"Yes\",(VLOOKUP(E79,Reference!$A$9:$B$11,2,FALSE)*VLOOKUP(F79,Reference!$A$2:$B$7,2,FALSE)*VLOOKUP(D79,Reference!$A$14:$B$15,2,FALSE)),(VLOOKUP(E79,Reference!$A$9:$B$11,2,FALSE)*VLOOKUP(F79,Reference!$A$2:$C$7,3,FALSE)*VLOOKUP(D79,Reference!$A$14:$B$15,2,FALSE))),\" \")","v":7.5}]
["7k","¿Se ha considerado la degradación de la tierra a través del aumento de la recarga de agua subterránea, el encharcamiento y los problemas de drenaje?",null,"Yes","High","Positive impact is very likely",null,{"$f":"IFERROR(IF(D80=\"Yes\",(VLOOKUP(E80,Reference!$A$9:$B$11,2,FALSE)*VLOOKUP(F80,Reference!$A$2:$B$7,2,FALSE)*VLOOKUP(D80,Reference!$A$14:$B$15,2,FALSE)),(VLOOKUP(E80,Reference!$A$9:$B$11,2,FALSE)*VLOOKUP(F80,Reference!$A$2:$C$7,3,FALSE)*VLOOKUP(D80,Reference!$A$14:$B$15,2,FALSE))),\" \")","v":7.5}]
["7l","¿Se ha considerado el impacto del proyecto en la degradación de la tierra a través de la acidificación del suelo?",null,"Yes","High","Positive impact is very likely",null,{"$f":"IFERROR(IF(D81=\"Yes\",(VLOOKUP(E81,Reference!$A$9:$B$11,2,FALSE)*VLOOKUP(F81,Reference!$A$2:$B$7,2,FALSE)*VLOOKUP(D81,Reference!$A$14:$B$15,2,FALSE)),(VLOOKUP(E81,Reference!$A$9:$B$11,2,FALSE)*VLOOKUP(F81,Reference!$A$2:$C$7,3,FALSE)*VLOOKUP(D81,Reference!$A$14:$B$15,2,FALSE))),\" \")","v":7.5}]
["7m","¿Se ha considerado el impacto del proyecto en la degradación de la tierra a través de la compactación del suelo?",null,"Yes","High","Positive impact is very likely",null,{"$f":"IFERROR(IF(D82=\"Yes\",(VLOOKUP(E82,Reference!$A$9:$B$11,2,FALSE)*VLOOKUP(F82,Reference!$A$2:$B$7,2,FALSE)*VLOOKUP(D82,Reference!$A$14:$B$15,2,FALSE)),(VLOOKUP(E82,Reference!$A$9:$B$11,2,FALSE)*VLOOKUP(F82,Reference!$A$2:$C$7,3,FALSE)*VLOOKUP(D82,Reference!$A$14:$B$15,2,FALSE))),\" \")","v":7.5}]
["7n","¿Se ha considerado el impacto sobre la degradación de la tierra a través de la erosión del suelo?",null,"Yes","High","Positive impact is very likely",null,{"$f":"IFERROR(IF(D83=\"Yes\",(VLOOKUP(E83,Reference!$A$9:$B$11,2,FALSE)*VLOOKUP(F83,Reference!$A$2:$B$7,2,FALSE)*VLOOKUP(D83,Reference!$A$14:$B$15,2,FALSE)),(VLOOKUP(E83,Reference!$A$9:$B$11,2,FALSE)*VLOOKUP(F83,Reference!$A$2:$C$7,3,FALSE)*VLOOKUP(D83,Reference!$A$14:$B$15,2,FALSE))),\" \")","v":7.5}]
["7o","¿Incluye el proyecto el uso de fuentes de agua no convencionales (es decir, aguas residuales)?",null,"Yes","High","Positive impact is very likely",null,{"$f":"IFERROR(IF(D84=\"Yes\",(VLOOKUP(E84,Reference!$A$9:$B$11,2,FALSE)*VLOOKUP(F84,Reference!$A$2:$B$7,2,FALSE)*VLOOKUP(D84,Reference!$A$14:$B$15,2,FALSE)),(VLOOKUP(E84,Reference!$A$9:$B$11,2,FALSE)*VLOOKUP(F84,Reference!$A$2:$C$7,3,FALSE)*VLOOKUP(D84,Reference!$A$14:$B$15,2,FALSE))),\" \")","v":7.5}]
["7p","¿Se ha considerado el impacto de una presa?",null,"Yes","High","Positive impact is very likely",null,{"$f":"IFERROR(IF(D85=\"Yes\",(VLOOKUP(E85,Reference!$A$9:$B$11,2,FALSE)*VLOOKUP(F85,Reference!$A$2:$B$7,2,FALSE)*VLOOKUP(D85,Reference!$A$14:$B$15,2,FALSE)),(VLOOKUP(E85,Reference!$A$9:$B$11,2,FALSE)*VLOOKUP(F85,Reference!$A$2:$C$7,3,FALSE)*VLOOKUP(D85,Reference!$A$14:$B$15,2,FALSE))),\" \")","v":7.5}]
["7q","¿Se ha tenido en cuenta el impacto del proyecto en los sistemas ecológicos (biodiversidad en las áreas de regadío y alrededores o en las áreas río abajo)?",null,"Yes","High","Positive impact is very likely",null,{"$f":"IFERROR(IF(D86=\"Yes\",(VLOOKUP(E86,Reference!$A$9:$B$11,2,FALSE)*VLOOKUP(F86,Reference!$A$2:$B$7,2,FALSE)*VLOOKUP(D86,Reference!$A$14:$B$15,2,FALSE)),(VLOOKUP(E86,Reference!$A$9:$B$11,2,FALSE)*VLOOKUP(F86,Reference!$A$2:$C$7,3,FALSE)*VLOOKUP(D86,Reference!$A$14:$B$15,2,FALSE))),\" \")","v":7.5}]
["7r","¿Se han considerado los impactos en la salud humana a través de una mayor incidencia de enfermedades relacionadas con el agua?",null,"Yes","High","Positive impact is very likely",null,{"$f":"IFERROR(IF(D87=\"Yes\",(VLOOKUP(E87,Reference!$A$9:$B$11,2,FALSE)*VLOOKUP(F87,Reference!$A$2:$B$7,2,FALSE)*VLOOKUP(D87,Reference!$A$14:$B$15,2,FALSE)),(VLOOKUP(E87,Reference!$A$9:$B$11,2,FALSE)*VLOOKUP(F87,Reference!$A$2:$C$7,3,FALSE)*VLOOKUP(D87,Reference!$A$14:$B$15,2,FALSE))),\" \")","v":7.5}]
["7s","¿Existe un sistema de recolección de desechos sólidos en el área del proyecto?",null,"Yes","High","Positive impact is very likely",null,{"$f":"IFERROR(IF(D88=\"Yes\",(VLOOKUP(E88,Reference!$A$9:$B$11,2,FALSE)*VLOOKUP(F88,Reference!$A$2:$B$7,2,FALSE)*VLOOKUP(D88,Reference!$A$14:$B$15,2,FALSE)),(VLOOKUP(E88,Reference!$A$9:$B$11,2,FALSE)*VLOOKUP(F88,Reference!$A$2:$C$7,3,FALSE)*VLOOKUP(D88,Reference!$A$14:$B$15,2,FALSE))),\" \")","v":7.5}]
["7t","¿Existe un sistema de recolección de desechos eléctricos y electrónicos (paneles solares, controladores de carga, inversores, cables ...) en el área del proyecto?",null,"Yes","High","Positive impact is very likely",null,{"$f":"IFERROR(IF(D89=\"Yes\",(VLOOKUP(E89,Reference!$A$9:$B$11,2,FALSE)*VLOOKUP(F89,Reference!$A$2:$B$7,2,FALSE)*VLOOKUP(D89,Reference!$A$14:$B$15,2,FALSE)),(VLOOKUP(E89,Reference!$A$9:$B$11,2,FALSE)*VLOOKUP(F89,Reference!$A$2:$C$7,3,FALSE)*VLOOKUP(D89,Reference!$A$14:$B$15,2,FALSE))),\" \")","v":7.5}]
["7u","¿Existe un sistema de recolección de baterías en el área del proyecto?",null,"Yes","High","Positive impact is very likely",null,{"$f":"IFERROR(IF(D90=\"Yes\",(VLOOKUP(E90,Reference!$A$9:$B$11,2,FALSE)*VLOOKUP(F90,Reference!$A$2:$B$7,2,FALSE)*VLOOKUP(D90,Reference!$A$14:$B$15,2,FALSE)),(VLOOKUP(E90,Reference!$A$9:$B$11,2,FALSE)*VLOOKUP(F90,Reference!$A$2:$C$7,3,FALSE)*VLOOKUP(D90,Reference!$A$14:$B$15,2,FALSE))),\" \")","v":7.5}]
["7v","¿Se ha considerado una mayor exposición a sustancias tóxicas (pesticidas, líquidos de baterías, fertilizantes, productos químicos, etc.)?",null,"Yes","High","Positive impact is very likely",null,{"$f":"IFERROR(IF(D91=\"Yes\",(VLOOKUP(E91,Reference!$A$9:$B$11,2,FALSE)*VLOOKUP(F91,Reference!$A$2:$B$7,2,FALSE)*VLOOKUP(D91,Reference!$A$14:$B$15,2,FALSE)),(VLOOKUP(E91,Reference!$A$9:$B$11,2,FALSE)*VLOOKUP(F91,Reference!$A$2:$C$7,3,FALSE)*VLOOKUP(D91,Reference!$A$14:$B$15,2,FALSE))),\" \")","v":7.5}]
["7w","¿Existe un sistema de recolección para recolectar plásticos agrícolas (tuberías, reservorios, mantillo, túneles, invernaderos, ensilajes, cajas, accesorios, redes, goteros ...) en el área del proyecto?",null,"Yes","High","Positive impact is very likely",null,{"$f":"IFERROR(IF(D92=\"Yes\",(VLOOKUP(E92,Reference!$A$9:$B$11,2,FALSE)*VLOOKUP(F92,Reference!$A$2:$B$7,2,FALSE)*VLOOKUP(D92,Reference!$A$14:$B$15,2,FALSE)),(VLOOKUP(E92,Reference!$A$9:$B$11,2,FALSE)*VLOOKUP(F92,Reference!$A$2:$C$7,3,FALSE)*VLOOKUP(D92,Reference!$A$14:$B$15,2,FALSE))),\" \")","v":7.5}]

{"sheet":"ENTRADA - Datos","index":2,"n_rows":45,"n_cols":6,"rows_kept":45,"cut":false,"hidden":false,"merged":[[39,1,39,5],[0,0,0,5],[1,0,1,5],[7,1,7,5],[19,1,19,5],[25,1,25,5]]}
["PROMUEVE – Herramienta de evaluación de impacto"]
["DATOS SOCIOECONÓMICOS"]
["Ref #","Pregunta","NÚMERO ABSOLUTO","PORCENTAJE [%]","COMMENTARIOS DEL USARIO","COMMENTARIOS DEL REVISOR DEL PROYECTO"]
["A1.0","¿Cuál es la población en las proximidades del proyecto?\n"]
["A1.1","¿Cuántas personas serán afectadas por el proyecto?\n",null,{"$f":"IFERROR(C5/C4,\"-\")","v":"-"}]
["A1.2","¿Cuántos agricultores serán afectados por el proyecto?",null,{"$f":"IFERROR(C6/C5,\"-\")","v":"-"}]
[null,"TOTAL",{"$f":"SUM(C5:C6)","v":0},{"$f":"C7/C4","v":{"$error":"#DIV/0!"}}]
["A2.0","¿Cuál es el desglose de la población de agricultores beneficiados por el proyecto en categorías de género, clase socioeconómica e ingresos?\n"]
["A2.1","Hombre",null,{"$f":"IFERROR(C9/(C9+C10),\"-\")","v":"-"}]
["A2.2","Mujer",null,{"$f":"IFERROR(C10/(C9+C10),\"-\")","v":"-"}]
[null,"TOTAL",{"$f":"SUM(C9:C10)","v":0},{"$f":"C11/C6","v":{"$error":"#DIV/0!"}}]
["A2.3","Strata 1: _____",null,{"$f":"IFERROR(C12/($C$12+$C$13+$C$14+$C$15),\"-\")","v":"-"}]
["A2.4","Strata 2:_____",null,{"$f":"IFERROR(C13/($C$12+$C$13+$C$14+$C$15),\"-\")","v":"-"}]
["A2.5","Strata 3:_____",null,{"$f":"IFERROR(C14/($C$12+$C$13+$C$14+$C$15),\"-\")","v":"-"}]
["A2.6","Strata 4:_____",null,{"$f":"IFERROR(C15/($C$12+$C$13+$C$14+$C$15),\"-\")","v":"-"}]
[null,"TOTAL",{"$f":"SUM(C12:C15)","v":0},{"$f":"C16/C6","v":{"$error":"#DIV/0!"}}]
["A2.7","Desempleados",null,{"$f":"IFERROR(C17/(C9+C10),\"-\")","v":"-"}]
["A2.8","Debajo de la línea de pobreza",null,{"$f":"IFERROR(C18/(C9+C10),\"-\")","v":"-"}]
[null,"TOTAL",{"$f":"SUM(C17:C18)","v":0},{"$f":"C19/C11","v":{"$error":"#DIV/0!"}}]
["A3.0","¿De dónde se han contratados los agricultores beneficiados?"]
["A3.1","Local en en pueblo",null,{"$f":"IFERROR(C21/($C$21+$C$22+$C$23+$C$24),\"-\")","v":"-"}]
["A3.2","Local reasentada",null,{"$f":"IFERROR(C22/($C$21+$C$22+$C$23+$C$24),\"-\")","v":"-"}]
["A3.3","Fondo sociológico igual de otro lado",null,{"$f":"IFERROR(C23/($C$21+$C$22+$C$23+$C$24),\"-\")","v":"-"}]
["A3.4","Fondo sociológico diferente",null,{"$f":"IFERROR(C24/($C$21+$C$22+$C$23+$C$24),\"-\")","v":"-"}]
[null,"TOTAL",{"$f":"SUM(C21:C24)","v":0},{"$f":"C25/C6","v":{"$error":"#DIV/0!"}}]
["A4.0","¿Cuáles son los requisitos laborales del proyecto?"]
["A4.1","Trabajo familiar",null,{"$f":"IFERROR(C27/($C$27+$C$28+$C$29+$C$30),\"-\")","v":"-"}]
["A4.2","Trabajo local",null,{"$f":"IFERROR(C28/($C$27+$C$28+$C$29+$C$30),\"-\")","v":"-"}]
["A4.3","Trabajo estacional",null,{"$f":"IFERROR(C29/($C$27+$C$28+$C$29+$C$30),\"-\")","v":"-"}]
["A4.4","Trabajo estacional desde lejos",null,{"$f":"IFERROR(C30/($C$27+$C$28+$C$29+$C$30),\"-\")","v":"-"}]
[null,"TOTAL",{"$f":"SUM(C27:C30)","v":0},{"$f":"C31/C6","v":{"$error":"#DIV/0!"}}]
["A5.0","¿Cuántas personas pierden los medios tradicionales de subsistencia (no los que están en el proyecto)?",null,"por año"]
[]
["A6.0","¿Cuántos empleos son creados por el proyecto?",null,"por año"]
["A6.1","¿Cuántos años se espera que duren?",null,"años"]
[]
["A7.0","¿Cuáles son las cifras estimadas de crecimiento de la población durante la vida de los activos?",null,"%"]
["A7.1","¿Cuál es la proporción estimada de migrantes debido al proyecto durante la vida útil de los activos?",null,"%"]
[]
["A8.0","¿Cuál es el desglose de la tenencia de los agricultores?"]
["A8.1","Terrateniente",null,{"$f":"IFERROR(C41/($C$41+$C$42+$C$43+$C$44),\"-\")","v":"-"}]
["A8.2","Arrendatario agrícola",null,{"$f":"IFERROR(C42/($C$41+$C$42+$C$43+$C$44),\"-\")","v":"-"}]
["A8.3","Arrendatario agrícola en tierra de gobierno",null,{"$f":"IFERROR(C43/($C$41+$C$42+$C$43+$C$44),\"-\")","v":"-"}]
["A8.4","Trabajador / Obrero",null,{"$f":"IFERROR(C44/($C$41+$C$42+$C$43+$C$44),\"-\")","v":"-"}]
[null,"TOTAL",{"$f":"SUM(C41:C44)","v":0},{"$f":"C45/C6","v":{"$error":"#DIV/0!"}}]

{"sheet":"SALIDA - Gráficos","index":3,"n_rows":33,"n_cols":13,"rows_kept":33,"cut":false,"hidden":false,"merged":[[0,1,0,12],[4,12,4,16],[5,12,5,16],[3,1,3,5],[4,1,4,5],[5,1,5,5],[3,12,3,16]]}
[null,"PROMUEVE – Herramienta de evaluación de impacto"]
[]
[]
["Nombre del proyecto:",{"$f":"'ENTRADA - Lista de verificación'!G4","v":"sample"},{"$nulls":5},"Fecha de la evaluación de impacto",{"$nulls":4},{"$f":"'ENTRADA - Lista de verificación'!G7","v":0}]
["Ubicación del proyecto:",{"$f":"'ENTRADA - Lista de verificación'!G5","v":0},{"$nulls":5},"Duración del proyecto (años)",{"$nulls":4},{"$f":"'ENTRADA - Lista de verificación'!G8","v":0}]
["Nombre del usario:",{"$f":"'ENTRADA - Lista de verificación'!G6","v":0},{"$nulls":5},"Vida útil del activo (años)",{"$nulls":4},{"$f":"'ENTRADA - Lista de verificación'!G9","v":0}]
[]
[]
[]
[]
[null,"Lowest score possible","Highest possible score","Actual Score","correction factor","% Reached"]
[{"$f":"'ENTRADA - Lista de verificación'!C4","v":"Cambio de población y migración"},{"$f":"0-C12","v":-52.5},{"$f":"COUNTA('ENTRADA - Lista de verificación'!A16:A22)*7.5","v":52.5},{"$f":"'ENTRADA - Lista de verificación'!D4","v":52.5},{"$f":"120/C12","v":2.2857142857142856},{"$f":"(E12*'ENTRADA - Lista de verificación'!D4)/120","v":1}]
[{"$f":"'ENTRADA - Lista de verificación'!C5","v":"Papel de la mujer"},{"$f":"0-C13","v":-105},{"$f":"COUNTA('ENTRADA - Lista de verificación'!A24:A37)*7.5","v":105},{"$f":"'ENTRADA - Lista de verificación'!D5","v":105},{"$f":"120/C13","v":1.1428571428571428},{"$f":"(E13*'ENTRADA - Lista de verificación'!D5)/120","v":1}]
[{"$f":"'ENTRADA - Lista de verificación'!C6","v":"Grupos minoritarios e indígenas"},-45,{"$f":"COUNTA('ENTRADA - Lista de verificación'!A39:A44)*7.5","v":45},{"$f":"'ENTRADA - Lista de verificación'!D6","v":45},2.6666666666666665,{"$f":"(E14*'ENTRADA - Lista de verificación'!D6)/120","v":1}]
[{"$f":"'ENTRADA - Lista de verificación'!C7","v":"Ingresos y servicios"},-52.5,{"$f":"COUNTA('ENTRADA - Lista de verificación'!A46:A52)*7.5","v":52.5},{"$f":"'ENTRADA - Lista de verificación'!D7","v":52.5},2.2857142857142856,{"$f":"(E15*'ENTRADA - Lista de verificación'!D7)/120","v":1}]
[{"$f":"'ENTRADA - Lista de verificación'!C8","v":"Efectos regionales en el país"},-67.5,{"$f":"COUNTA('ENTRADA - Lista de verificación'!A54:A62)*7.5","v":67.5},{"$f":"'ENTRADA - Lista de verificación'!D8","v":67.5},1.7777777777777777,{"$f":"(E16*'ENTRADA - Lista de verificación'!D8)/120","v":1}]
[{"$f":"'ENTRADA - Lista de verificación'!C9","v":"Participación del usario"},-37.5,{"$f":"COUNTA('ENTRADA - Lista de verificación'!A64:A68)*7.5","v":37.5},{"$f":"'ENTRADA - Lista de verificación'!D9","v":37.5},3.2,{"$f":"(E17*'ENTRADA - Lista de verificación'!D9)/120","v":1}]
[{"$f":"'ENTRADA - Lista de verificación'!C10","v":"Recursos naturales y medio ambiente"},-172.5,{"$f":"COUNTA('ENTRADA - Lista de verificación'!A70:A92)*7.5","v":172.5},{"$f":"'ENTRADA - Lista de verificación'!D10","v":172.5},{"$f":"120/C18","v":0.69565217391304346},{"$f":"(E18*'ENTRADA - Lista de verificación'!D10)/120","v":1}]
[]
[]
[]
["Gender and Socioeconomic Spread of Project Beneficiaries"]
[]
[{"$f":"'ENTRADA - Datos'!B9","v":"Hombre"},{"$f":"'ENTRADA - Datos'!D9","v":"-"}]
[{"$f":"'ENTRADA - Datos'!B10","v":"Mujer"},{"$f":"'ENTRADA - Datos'!D10","v":"-"}]
[{"$f":"'ENTRADA - Datos'!B12","v":"Strata 1: _____"},{"$f":"'ENTRADA - Datos'!D12","v":"-"}]
[{"$f":"'ENTRADA - Datos'!B13","v":"Strata 2:_____"},{"$f":"'ENTRADA - Datos'!D13","v":"-"}]
[{"$f":"'ENTRADA - Datos'!B14","v":"Strata 3:_____"},{"$f":"'ENTRADA - Datos'!D14","v":"-"}]
[{"$f":"'ENTRADA - Datos'!B15","v":"Strata 4:_____"},{"$f":"'ENTRADA - Datos'!D15","v":"-"}]
[{"$f":"'ENTRADA - Datos'!B41","v":"Terrateniente"},{"$f":"'ENTRADA - Datos'!D41","v":"-"}]
[{"$f":"'ENTRADA - Datos'!B42","v":"Arrendatario agrícola"},{"$f":"'ENTRADA - Datos'!D42","v":"-"}]
[{"$f":"'ENTRADA - Datos'!B43","v":"Arrendatario agrícola en tierra de gobierno"},{"$f":"'ENTRADA - Datos'!D43","v":"-"}]
[{"$f":"'ENTRADA - Datos'!B44","v":"Trabajador / Obrero"},{"$f":"'ENTRADA - Datos'!D44","v":"-"}]

{"sheet":"Traducción","index":4,"n_rows":14,"n_cols":10,"rows_kept":14,"cut":false,"hidden":false,"merged":[]}
[null,"English",null,null,null,"Français",null,null,null,"Español"]
[]
[null,"Sheet: INPUT-Checklist",{"$nulls":7},"Hoja: Entrada - Lista de verificación"]
[]
[null,"Yes",{"$nulls":7},"Si"]
[null,"No",{"$nulls":7},"No"]
[null,"High",{"$nulls":7},"Alto"]
[null,"Medium",{"$nulls":7},"Medio"]
[null,"Low",{"$nulls":7},"Bajo"]
[null,"Positive impact is very likely ",{"$nulls":7},"Impacto positivo es muy probable"]
[null,"Positive impact possible",{"$nulls":7},"Impacto positivo es posible"]
[null,"No impact likely",{"$nulls":7},"Probablemente sin impacto"]
[null,"Negative impact possible",{"$nulls":7},"Impacto negativo posible"]
[null,"Negative impact very possible",{"$nulls":7},"Impacto negativo muy posible"]

{"sheet":"VERSION CONTROL","index":5,"n_rows":22,"n_cols":5,"rows_kept":22,"cut":false,"hidden":true,"merged":[[8,4,8,7],[8,2,8,3],[20,3,20,7],[9,3,11,7],[13,2,13,3],[13,4,13,6],[14,2,14,3],[14,4,14,6],[15,2,15,3],[15,4,15,6],[17,3,17,7],[18,3,18,7],[19,3,19,7],[27,3,27,7],[21,3,21,7],[22,3,22,7],[23,3,23,7],[24,3,24,7],[25,3,25,7],[26,3,26,7]]}
{"$rows_empty":9}
[null,null,null,"Tranlsation of ICID Checklist for Socioeconomic perspectives for SPIS projects"]
[]
[]
[]
[null,null,"Created By",null,"Alqayam Meghji"]
[null,null,"Checked By",null,"Lucie Pluschke"]
[null,null,"Reviewed By"]
[]
[null,"Date","Rev:","Comments"]
[null,"19/03/18",0.1,"Draft for review"]
[null,"23/03/18",0.2,"Inclusion of equity and efficieny"]
[null,"28/03/18",0.3,"Inclusion of environmental considerations and conditional formatting"]
[null,"29/03/18",0.4,"Changes made after review with Lucie Plushke"]

{"sheet":"Reference","index":6,"n_rows":29,"n_cols":3,"rows_kept":29,"cut":false,"hidden":true,"merged":[]}
["Impact","Score YES","Score NO"]
["Positive impact is very likely",5,1]
["Positive impact possible",2,1]
["No impact likely",1,1]
["Negative impact possible",-2,4]
["Negative impact very likely",-5,5]
[]
["Weighting","Linear Multiplier"]
["High",1.5]
["Medium",1]
["Low",0.5]
[]
["Weighting","Linear Multiplier"]
["Yes",1]
["No",-1]
[]
["Questions"]
["https://ec.europa.eu/agriculture/publi/reports/sustain/index_en.pdf  "]
[]
[]
[]
[]
[]
[]
["Agroecology","http://www.fao.org/agroecology/knowledge/10-elements/en/"]
[]
["Questions not included:"]
["Optimum utilisation of the factors of production, in particular labour, increase of agricultural productivity"]
["Assurance of the availability of supplies"]